bitfinex/quotes_ETHUSD_20220219
["timestamp","ask_amount","ask_price","bid_price","bid_amount"]
[1645270424661,3.5,2741.7,2739.4,4.5438707]
[1645270424662,4.92085123,2740.4,2739.4,4.5438707]
[1645270424863,4.92085123,2740.4,2740.2,0.0028982]
[1645270425062,4.92085123,2740.4,2739.5,3.5028982]
[1645270425264,4.92085123,2740.4,2740.3,5.904113]
[1645270425462,4.92085123,2740.4,2739.6,48.4699642]
[1645270425664,4.92085123,2740.4,2739.7,0.4398982]
[1645270425861,4.92085123,2740.4,2739.7,0.437]
[1645270426062,4.92085123,2740.4,2739.8,0.0028982]
[1645270427067,4.92085123,2740.4,2739.9,0.437]
[1645270427465,0.99092088,2740.9,2740.0,0.0028982]
[1645270427730,0.99092088,2740.9,2740.1,0.437]
[1645270427731,4.92085123,2740.3,2740.1,0.437]
[1645270427911,4.92085123,2740.3,2740.2,0.0028982]
[1645270428111,4.92085123,2740.3,2740.1,0.437]
[1645270428112,4.92085123,2740.3,2740.0,0.0028982]
[1645270428313,0.1824,2740.8,2739.1,0.20060007]
[1645270428616,0.1824,2740.8,2739.3,0.00288484]
[1645270428617,11.0,2740.6,2739.3,0.00288484]
[1645270428823,1.54971976,2740.7,2739.3,0.00288484]
[1645270428824,4.92085123,2739.4,2739.3,0.00288484]
[1645270429015,4.92085123,2739.4,2739.0,0.00288484]
[1645270429218,14.5,2740.3,2739.0,6.316e-05]
[1645270429219,6.07726713,2739.1,2739.0,6.316e-05]
[1645270429416,4.92085123,2739.1,2739.0,6.316e-05]
[1645270429818,4.92085123,2739.1,2737.4,4.14786]
[1645270429819,0.00073684,2738.8,2738.1,0.00288484]
[1645270430019,0.13313684,2739.0,2737.9,3.5]
[1645270430216,0.13313684,2739.0,2737.5,3.78094484]
[1645270430217,4.92085123,2739.0,2738.1,0.437]
[1645270430414,4.6025,2739.7,2738.1,0.437]
[1645270430415,4.92085123,2738.5,2738.1,0.437]
[1645270430614,1.01211596,2739.0,2738.2,0.00288484]
[1645270430814,4.92085123,2738.3,2738.1,0.437]
[1645270431017,4.6025,2739.7,2738.2,3.50288484]
[1645270431217,4.4201,2739.7,2738.5,0.91281]
[1645270431463,4.4201,2739.7,2738.6,1.35262484]
[1645270431859,4.4201,2739.7,2738.7,1.32077703]
[1645270432061,4.92085123,2739.3,2738.8,0.43988484]
[1645270432360,4.92085123,2739.3,2738.9,1.21269]
[1645270432559,4.92085123,2739.3,2739.0,0.3]
[1645270432760,4.4201,2739.7,2739.0,0.30288484]
[1645270432962,4.92085123,2739.3,2739.1,0.00288484]
[1645270433361,4.92085123,2739.2,2739.1,0.00288484]
[1645270433564,4.92085123,2739.2,2738.9,0.43845957]
[1645270433565,5.81044591,2739.2,2738.9,0.43845957]
[1645270433766,5.81044591,2739.2,2738.6,0.00288484]
[1645270433767,4.92085123,2739.0,2738.6,0.00288484]
[1645270433970,0.88959468,2739.2,2738.9,0.00145957]
[1645270434165,0.88959468,2739.2,2738.9,5.957e-05]
[1645270434166,4.92085123,2739.0,2738.9,5.957e-05]
[1645270434763,4.92085123,2739.0,2737.9,0.00288484]
[1645270435414,9.5,2738.4,2737.4,0.437]
[1645270435609,9.5,2738.4,2737.9,0.00285739]
[1645270435812,4.92085123,2738.0,2737.5,0.00285739]
[1645270436012,13.0,2738.4,2737.5,0.00285739]
[1645270436216,4.92085123,2737.7,2737.0,0.43985739]
[1645270436413,0.90823347,2737.8,2737.6,0.00832335]
[1645270436622,4.92085123,2737.7,2737.6,2.335e-05]
[1645270437213,4.92085123,2737.7,2736.7,0.00285739]
[1645270437214,8.42085123,2737.7,2736.7,0.00285739]
[1645270437421,8.42085123,2737.7,2735.6,0.007]
[1645270437422,4.92085123,2736.8,2735.6,0.007]
[1645270437620,3.6826,2737.7,2735.6,0.007]
[1645270437621,4.92085123,2736.5,2735.6,0.007]
[1645270437817,4.92085123,2735.7,2735.4,0.00283168]
[1645270438017,4.92085123,2735.5,2734.8,0.2244]
[1645270438215,0.13819997,2736.2,2734.9,0.0028183]
[1645270438216,4.92085123,2735.1,2734.9,0.0028183]
[1645270438548,4.92085123,2735.1,2734.8,0.2244]
[1645270439370,4.92085123,2735.1,2734.8,0.6614]
[1645270439771,0.89648157,2735.8,2734.8,0.6614]
[1645270440170,0.13819997,2736.2,2734.8,0.6242183]
[1645270440171,6.5,2736.1,2734.8,0.6242183]
[1645270440370,4.566,2736.6,2735.1,0.07914877]
[1645270440569,4.566,2736.6,2734.9,0.00280452]
[1645270440570,4.3833,2736.6,2734.9,3.50280452]
[1645270440773,9.30415123,2736.6,2735.4,0.9138875]
[1645270440969,9.30415123,2736.6,2735.6,1.90672877]
[1645270441170,9.30415123,2736.6,2735.9,0.07914877]
[1645270441171,4.3833,2736.6,2735.9,0.07914877]
[1645270441380,4.3833,2736.6,2736.0,0.6197]
[1645270441573,4.3833,2736.6,2736.1,0.43980452]
[1645270441777,4.3833,2736.6,2735.9,0.43980452]
[1645270441971,4.3833,2736.6,2735.9,0.73980452]
[1645270442373,4.3833,2736.6,2736.2,0.0014185]
[1645270443308,4.3833,2736.6,2736.1,0.00280452]
[1645270443508,4.3833,2736.6,2736.3,0.00141847]
[1645270443712,4.92085123,2736.4,2736.3,0.00141847]
[1645270443918,8.42085123,2736.4,2736.3,1.847e-05]
[1645270444512,5.10355123,2736.4,2734.9,0.00280452]
[1645270444710,1.19219181,2735.2,2734.9,0.00280452]
[1645270444911,0.1827,2736.3,2734.8,0.1872183]
[1645270444912,4.92085123,2735.3,2734.8,0.1872183]
[1645270445109,4.92085123,2735.3,2734.9,0.00280452]
[1645270445515,4.92085123,2735.0,2734.8,0.19000903]
[1645270445714,4.92085123,2735.0,2734.0,0.1827]
[1645270445918,4.92085123,2734.1,2733.5,0.2038]
[1645270446113,0.32295826,2735.1,2733.9,0.00277743]
[1645270446114,0.1827,2734.9,2733.9,0.00277743]
[1645270446314,0.1827,2734.9,2733.5,0.2038]
[1645270446315,4.92085123,2734.0,2733.5,0.2038]
[1645270446581,5.32981,2734.9,2733.6,0.00276444]
[1645270446582,0.1827,2734.8,2733.6,0.00276444]
[1645270446776,0.1827,2734.8,2732.3,0.437]
[1645270446777,5.90818141,2733.7,2732.3,0.1408]
[1645270446985,4.92085123,2733.4,2732.3,0.1408]
[1645270447181,3.5,2733.6,2732.3,0.1408]
[1645270447182,0.18560648,2733.5,2732.4,0.00275115]
[1645270447378,4.92085123,2732.9,2732.4,0.00275115]
[1645270447579,3.6829,2733.6,2732.0,0.023597]
[1645270447580,4.92085123,2732.7,2732.0,0.023597]
[1645270447975,3.5,2732.9,2732.0,0.023597]
[1645270448175,14.42085123,2732.8,2731.7,0.12634815]
[1645270448382,3.5,2732.7,2731.4,0.27806]
[1645270448582,4.92085123,2732.3,2731.6,0.00272581]
[1645270448776,3.5,2732.7,2731.3,0.437]
[1645270448777,4.92085123,2732.4,2731.3,0.437]
[1645270448983,1.01699979,2731.7,2730.8,0.25]
[1645270449180,1.01699979,2731.7,2730.3,0.07914877]
[1645270449181,4.92085123,2731.1,2730.3,0.38701271]
[1645270449382,12.95,2731.6,2730.8,0.00269975]
[1645270449383,13.1542,2731.6,2730.8,0.00269975]
[1645270449588,13.1542,2731.6,2730.4,0.00269975]
[1645270449589,4.92085123,2731.1,2730.4,0.00269975]
[1645270449781,4.92085123,2731.1,2730.1,0.00870973]
[1645270449782,4.92085123,2731.1,2730.1,0.01140948]
[1645270449981,4.92085123,2730.2,2730.1,0.01140948]
[1645270450215,9.5,2730.3,2730.0,0.20870973]
[1645270450425,9.5,2730.3,2730.0,0.10870973]
[1645270450426,7.5,2730.3,2730.0,0.10870973]
[1645270450713,8.0727,2730.9,2730.0,0.10870973]
[1645270450919,0.25,2730.4,2730.0,9.73e-06]
[1645270451115,4.92085123,2730.1,2730.0,9.73e-06]
[1645270451526,8.42085123,2730.1,2730.0,5.307e-05]
[1645270451724,8.42085123,2730.1,2728.7,0.001278]
[1645270451725,0.95957753,2729.4,2727.5,0.01245667]
[1645270451920,0.95957753,2729.4,2726.9,0.9166]
[1645270451921,9.5,2729.2,2726.9,0.9166]
[1645270452122,9.5,2729.2,2727.0,0.01495545]
[1645270452123,5.0,2728.7,2727.0,0.01495545]
[1645270452318,5.0,2728.7,2726.0,4.22271215]
[1645270452319,9.5,2727.7,2726.0,4.22271215]
[1645270452517,9.5,2727.7,2725.0,27.10234]
[1645270452518,0.25,2727.4,2726.1,2.497e-05]
[1645270452720,0.25,2727.4,2726.1,15.533087]
[1645270452918,0.25,2727.4,2726.0,0.00261198]
[1645270452919,4.7297,2727.7,2726.2,46.52811798]
[1645270453116,0.01281328,2726.9,2726.2,14.275411]
[1645270453320,0.01281328,2726.9,2725.8,0.09453]
[1645270453321,9.5,2726.7,2725.8,0.04459]
[1645270453521,14.31385123,2726.7,2725.8,0.04459]
[1645270453720,14.31385123,2726.7,2725.8,0.04717612]
[1645270453721,9.643,2726.7,2725.8,0.04717612]
[1645270453987,9.643,2726.7,2725.3,0.49689]
[1645270453988,9.5,2726.6,2725.3,0.49689]
[1645270454171,9.5,2726.6,2725.0,27.09164122]
[1645270454172,4.92085123,2726.3,2725.0,27.09164122]
[1645270454373,3.5,2726.5,2725.0,27.09164122]
[1645270454374,1.00269482,2725.5,2725.0,27.09164122]
[1645270454571,0.1834,2726.2,2725.1,0.00254904]
[1645270454775,9.5,2726.5,2725.0,22.73094873]
[1645270454967,9.5,2726.5,2725.1,0.00253664]
[1645270454968,4.92085123,2726.1,2725.1,0.00253664]
[1645270455168,9.5,2726.5,2725.0,21.27560363]
[1645270455169,0.18781781,2726.2,2725.0,18.76054027]
[1645270455369,0.0122106,2725.7,2725.0,18.76054027]
[1645270455567,20.74941302,2726.0,2725.1,0.08166023]
[1645270455568,17.36758411,2726.0,2725.1,0.08166023]
[1645270455770,10.37850659,2726.0,2725.6,0.49689]
[1645270455971,0.12277304,2726.0,2725.6,1.95218038]
[1645270456173,0.12277304,2726.0,2724.1,0.08611616]
[1645270456174,9.5,2725.8,2724.1,0.08611616]
[1645270456371,9.5,2725.8,2723.1,0.03720002]
[1645270456372,4.92085123,2724.5,2723.3,3.863267]
[1645270456571,3.5,2725.7,2723.3,3.863267]
[1645270456572,13.33780163,2725.7,2723.8,0.00248687]
[1645270456772,13.33780163,2725.7,2723.5,0.22145297]
[1645270456773,9.83780163,2725.7,2724.9,0.08049654]
[1645270456972,9.33780376,2725.6,2724.9,0.00134777]
[1645270457172,1.05257941,2725.4,2724.9,0.00134777]
[1645270457375,1.4460131,2725.3,2724.8,0.03369585]
[1645270457572,1.4460131,2725.3,2724.8,9.585e-05]
[1645270457815,1.26810391,2726.0,2724.4,0.07914877]
[1645270457816,1.38305585,2725.2,2724.4,0.07914877]
[1645270458014,1.26810391,2726.0,2724.4,9.5]
[1645270458215,1.35777926,2725.9,2725.3,0.07914877]
[1645270458414,1.35777926,2725.9,2725.3,1.30774486]
[1645270458614,1.2454,2727.0,2725.5,0.07914877]
[1645270458615,1.37892765,2726.8,2725.5,0.07914877]
[1645270458817,0.258,2727.8,2725.7,0.07914877]
[1645270459014,0.258,2727.8,2726.4,0.07914877]
[1645270459218,0.258,2727.8,2726.3,0.437]
[1645270459419,0.258,2727.8,2725.9,3.50248687]
[1645270459420,0.258,2727.8,2726.5,0.50332716]
[1645270459612,0.258,2727.8,2726.7,0.07914877]
[1645270459815,2.2383,2727.7,2726.8,0.437]
[1645270460019,0.1832,2729.1,2726.9,8.0]
[1645270460216,0.1832,2729.1,2727.3,0.07914877]
[1645270460520,4.92085123,2729.8,2727.4,10.01614877]
[1645270460521,1.11472356,2729.2,2727.4,10.01614877]
[1645270460715,0.1832,2729.6,2727.9,0.07914877]
[1645270460716,4.92085123,2729.6,2727.9,0.07914877]
[1645270460917,4.92085123,2729.6,2728.1,0.07914877]
[1645270461116,4.92085123,2729.8,2728.2,0.6202]
[1645270461319,4.92085123,2729.8,2728.5,0.07914877]
[1645270461576,0.1832,2730.1,2728.8,0.50332716]
[1645270461577,0.14468955,2729.9,2728.8,0.50332716]
[1645270461772,0.01268379,2730.2,2728.9,0.51863564]
[1645270461773,0.15209657,2730.2,2728.9,0.51863564]
[1645270461968,0.1475391,2730.8,2728.9,0.51863564]
[1645270462165,0.1831,2730.7,2728.9,1.00173564]
[1645270462365,0.4331,2730.7,2728.9,0.92258687]
[1645270462569,0.4331,2730.7,2728.9,1.73948687]
[1645270462766,4.77085123,2729.9,2728.9,1.73948687]
[1645270462974,4.77085123,2729.9,2728.9,0.73948687]
[1645270463767,0.17352296,2730.0,2728.9,0.92258687]
[1645270463968,7.1655,2732.2,2728.9,0.92258687]
[1645270463969,0.00217257,2729.5,2728.9,0.92258687]
[1645270464371,0.00217257,2729.5,2728.9,5.33827977]
[1645270464569,0.00217257,2729.5,2729.3,0.53377294]
[1645270464771,0.19557142,2731.3,2728.9,2.13827977]
[1645270464772,4.77085123,2730.3,2729.4,0.5101]
[1645270464971,4.77085123,2730.3,2729.5,0.00248687]
[1645270465214,0.86072654,2730.9,2729.5,0.00248687]
[1645270465215,0.1831,2730.9,2729.5,0.00248687]
[1645270465411,0.14630474,2731.0,2729.6,0.437]
[1645270465412,4.77085123,2731.0,2729.6,0.437]
[1645270465609,4.77085123,2731.0,2729.7,0.18558687]
[1645270465610,3.5,2730.9,2729.7,0.18558687]
[1645270465813,4.77085123,2730.5,2729.8,0.00248687]
[1645270466210,8.27085123,2731.0,2729.8,0.00248687]
[1645270466410,0.13798109,2730.8,2729.8,0.00248687]
[1645270466611,4.77085123,2730.6,2729.8,0.00248687]
[1645270466812,4.77085123,2730.6,2728.9,1.0]
[1645270466813,9.5,2730.4,2728.8,0.97630595]
[1645270467015,9.5,2730.4,2728.6,1.99597199]
[1645270467016,4.77085123,2729.0,2727.9,0.1831]
[1645270467213,0.01250348,2729.1,2728.8,5.833e-05]
[1645270467415,0.01250348,2729.1,2727.5,0.437]
[1645270467416,4.77085123,2728.9,2727.5,0.437]
[1645270467612,0.26250348,2729.1,2727.5,0.437]
[1645270467613,0.01250348,2729.1,2728.0,0.00244732]
[1645270467822,5.96252538,2729.4,2728.1,0.437]
[1645270468012,4.77085123,2729.4,2728.2,0.1832]
[1645270468219,4.77085123,2729.4,2728.9,4.5]
[1645270468413,0.1832,2729.9,2728.9,4.5]
[1645270468621,4.77085123,2729.6,2728.9,0.00244732]
[1645270468814,4.77341057,2729.6,2728.9,0.6]
[1645270469066,4.77341057,2729.6,2729.0,0.30244732]
[1645270469372,0.1954681,2730.9,2729.1,6.0]
[1645270469566,0.1831,2730.9,2729.5,0.22914877]
[1645270469768,4.77085123,2731.0,2729.6,0.6201]
[1645270469966,2.7948,2732.2,2729.7,3.937]
[1645270470169,4.77085123,2731.4,2730.2,0.22914877]
[1645270470372,3.5,2731.6,2730.3,0.6199]
[1645270470566,3.5,2731.6,2730.3,0.437]
[1645270470765,4.77085123,2730.6,2730.4,0.09734918]
[1645270470965,4.77085123,2731.0,2729.8,0.09490186]
[1645270471162,4.95395123,2731.4,2729.8,0.09734918]
[1645270471366,4.95395123,2731.4,2730.0,0.09490186]
[1645270471367,5.20395123,2731.4,2730.0,0.09490186]
[1645270471571,0.4331,2731.4,2730.2,0.09490186]
[1645270471769,4.77085123,2730.3,2728.9,3.5]
[1645270471966,4.77085123,2730.3,2728.3,0.1831]
[1645270471967,0.4331,2730.3,2728.3,0.1831]
[1645270472166,4.77085123,2729.5,2728.9,0.00242233]
[1645270472366,4.77085123,2729.5,2728.3,0.00242233]
[1645270472564,0.61239693,2730.3,2728.3,0.2315711]
[1645270472565,4.77085123,2730.0,2728.3,0.2315711]
[1645270472819,4.77085123,2730.0,2728.4,0.6202]
[1645270473028,4.77085123,2730.0,2728.5,0.91838233]
[1645270473215,4.77085123,2730.0,2728.6,0.62262233]
[1645270473415,4.77085123,2730.3,2728.7,0.00242233]
[1645270473618,0.01209006,2731.1,2728.7,0.00242233]
[1645270473619,0.00255933,2729.7,2728.8,0.6201]
[1645270473814,0.00255933,2729.7,2728.9,0.00242233]
[1645270474019,0.00255933,2729.7,2729.0,0.437]
[1645270474216,0.00255933,2729.7,2729.0,0.737]
[1645270474424,0.00255933,2729.7,2729.1,3.5]
[1645270474621,0.1832,2731.0,2729.2,1.09130631]
[1645270474822,4.77085123,2729.6,2729.2,1.09372864]
[1645270475016,4.77085123,2729.6,2729.3,0.00242233]
[1645270475229,4.77085123,2729.6,2728.4,0.00510424]
[1645270475230,4.77085123,2729.4,2728.4,0.00510424]
[1645270475424,3.5,2729.5,2727.0,6.1842]
[1645270475425,0.01529797,2728.1,2727.0,6.1842]
[1645270475625,0.01529797,2728.1,2727.3,0.0023989]
[1645270475819,0.01529797,2728.1,2727.1,23.260077]
[1645270476024,0.01529797,2728.1,2726.6,0.22914877]
[1645270476218,0.01529797,2728.1,2726.7,0.0023989]
[1645270476466,4.77085123,2728.0,2726.7,0.0023989]
[1645270476668,4.77085123,2727.8,2726.7,0.0023989]
[1645270476969,0.01529797,2728.1,2726.3,0.1832]
[1645270476970,4.77085123,2727.3,2726.3,0.1855989]
[1645270477167,4.77085123,2727.3,2726.3,0.0023989]
[1645270477168,0.9320674,2727.1,2726.3,0.0023989]
[1645270477366,4.77085123,2726.6,2726.4,86.767807]
[1645270477566,0.9320674,2727.1,2726.4,81.239753]
[1645270477567,1.1820674,2727.1,2726.4,81.239753]
[1645270477767,1.1820674,2727.1,2726.5,73.827205]
[1645270477768,0.1832,2727.0,2726.5,73.827205]
[1645270477976,1.1820674,2727.1,2726.5,73.827205]
[1645270477977,0.9320674,2727.1,2726.5,43.227849]
[1645270478168,0.25,2728.0,2726.6,42.659784]
[1645270478169,4.77085123,2727.6,2726.6,42.659784]
[1645270478364,0.1832,2727.9,2726.6,40.9067939]
[1645270478365,4.77085123,2727.3,2726.6,40.9067939]
[1645270478564,4.77085123,2727.3,2726.7,0.0023989]
[1645270478765,4.77085123,2727.7,2726.7,9.4506019]
[1645270478967,0.1832,2727.6,2726.8,0.0023989]
[1645270479165,0.89853754,2727.5,2726.8,0.0023989]
[1645270479365,0.89853754,2727.5,2726.8,0.3023989]
[1645270479570,0.1832,2728.0,2726.8,0.3]
[1645270479768,3.65349794,2728.1,2727.1,0.00126391]
[1645270479969,0.15349794,2728.1,2727.1,0.00126391]
[1645270480220,4.77085123,2727.2,2727.1,6.391e-05]
[1645270480618,4.77085123,2727.2,2725.1,0.0023989]
[1645270480619,13.45405123,2727.2,2725.1,0.0023989]
[1645270480820,13.45405123,2727.2,2724.8,0.0023989]
[1645270480821,4.77085123,2725.8,2724.8,0.0023989]
[1645270481218,0.98690927,2725.8,2724.8,0.0023989]
[1645270481419,6.0077605,2725.8,2724.8,0.0023989]
[1645270481620,5.02085123,2725.8,2724.8,0.0023989]
[1645270481818,3.5,2726.5,2724.8,0.0023989]
[1645270481819,4.95425123,2726.4,2724.8,0.0023989]
[1645270482023,3.5,2726.3,2724.8,0.4393989]
[1645270482218,4.77085123,2726.0,2724.8,0.4393989]
[1645270482616,5.66287717,2726.0,2724.8,0.4393989]
[1645270482817,5.66287717,2726.0,2724.9,3.5]
[1645270483018,5.66287717,2726.0,2725.0,0.0023989]
[1645270483326,4.77085123,2725.9,2725.3,0.00126906]
[1645270483717,8.27085123,2725.9,2725.3,0.00126906]
[1645270483959,8.27085123,2725.9,2725.4,16.144046]
[1645270483960,4.77085123,2725.9,2725.4,16.144046]
[1645270484159,0.89202594,2726.0,2725.4,0.0023989]
[1645270484359,0.89202594,2726.0,2724.3,2.08464]
[1645270484360,4.77085123,2725.9,2724.8,0.0023989]
[1645270484563,4.77085123,2725.9,2725.5,0.00126897]
[1645270485562,4.77085123,2725.9,2724.9,0.9173268]
[1645270485763,3.6834,2726.8,2724.8,1.14889767]
[1645270485764,3.5,2725.8,2725.6,6.892e-05]
[1645270485966,4.77085123,2725.7,2725.6,6.892e-05]
[1645270486563,4.77085123,2725.7,2724.4,0.9175107]
[1645270486765,4.77085123,2725.7,2724.6,0.91746]
[1645270486961,0.88768002,2725.6,2724.7,0.0023989]
[1645270487810,4.77085123,2725.0,2724.7,0.0023989]
[1645270488012,0.88768002,2725.6,2725.0,0.00126618]
[1645270488611,4.77085123,2725.7,2725.0,0.00126618]
[1645270489011,4.77085123,2725.7,2724.5,0.0023989]
[1645270489418,4.77085123,2725.7,2725.2,0.00126608]
[1645270490212,4.77085123,2725.7,2724.8,0.0023989]
[1645270490411,1.0393208,2726.3,2725.3,0.00126604]
[1645270490613,4.77085123,2726.5,2725.3,0.00126604]
[1645270490821,1.2387,2727.2,2725.7,0.22914877]
[1645270491015,1.2387,2727.2,2725.8,0.4393989]
[1645270491474,6.00955123,2727.2,2725.9,1.08058697]
[1645270491770,1.2387,2727.2,2726.3,0.22914877]
[1645270491965,3.6832,2727.9,2726.3,0.22914877]
[1645270491966,3.5,2727.9,2726.5,7.5]
[1645270492163,3.51529797,2728.1,2726.8,0.22914877]
[1645270492363,3.51529797,2728.1,2726.9,0.66854767]
[1645270492364,0.01529797,2728.1,2726.9,0.66854767]
[1645270492568,0.01529797,2728.1,2727.1,0.22914877]
[1645270492763,0.01529797,2728.1,2727.2,2.4555489]
[1645270492967,0.01529797,2728.1,2727.8,0.9163025]
[1645270492968,9.797e-05,2728.1,2727.8,0.9163025]
[1645270493169,9.797e-05,2728.1,2727.9,0.6202]
[1645270493365,0.00254113,2728.4,2727.9,2.2202]
[1645270493964,4.77085123,2729.3,2728.2,3.6647985]
[1645270494168,0.00254169,2728.4,2728.3,1.35319]
[1645270494364,0.00254169,2728.4,2728.3,2.65319]
[1645270495211,4.77085123,2729.3,2728.3,2.65319]
[1645270495411,0.00254181,2728.5,2728.3,1.737]
[1645270495718,0.00254181,2728.5,2727.8,4.20326767]
[1645270495719,1.65940116,2728.1,2727.0,3.6675189]
[1645270495920,4.77085123,2727.5,2727.0,0.0023989]
[1645270496120,4.77085123,2727.3,2727.0,0.0023989]
[1645270496320,3.6332,2728.0,2726.7,0.95042511]
[1645270496321,4.29265123,2728.0,2726.7,0.95042511]
[1645270496513,2.74181614,2728.1,2726.7,2.75019]
[1645270496711,2.74181614,2728.1,2726.8,0.0023989]
[1645270496913,2.74181614,2728.1,2726.8,1.3561789]
[1645270497114,4.29265123,2728.0,2726.8,2.2728689]
[1645270497416,2.74181614,2728.1,2726.8,2.2728689]
[1645270497417,1.65940116,2728.1,2727.0,0.9167155]
[1645270497615,1.65940116,2728.1,2727.1,0.737]
[1645270498313,1.65940116,2728.1,2727.2,1.83325]
[1645270498518,1.65940116,2728.1,2727.4,0.9165252]
[1645270498713,1.65940116,2728.1,2727.5,0.437]
[1645270499371,1.65940116,2728.1,2727.5,1.35348]
[1645270499670,1.65940116,2728.1,2727.7,0.9164973]
[1645270500069,1.65940116,2728.1,2727.7,1.2164973]
[1645270500271,1.65940116,2728.1,2727.7,2.1329273]
[1645270500572,1.65940116,2728.1,2727.9,0.91639]
[1645270500772,1.65940116,2728.1,2727.9,1.51639]
[1645270500978,0.00256423,2728.4,2728.0,3.937]
[1645270501173,5.5793512,2729.9,2728.6,0.53120648]
[1645270501381,1.0553,2729.8,2729.0,0.91592]
[1645270501582,1.0553,2729.8,2729.1,1.8317994]
[1645270501775,1.0553,2729.8,2729.2,0.3]
[1645270502075,1.0553,2729.8,2729.2,0.737]
[1645270502477,4.29265123,2729.3,2729.0,3.66361]
[1645270502760,1.0553,2729.8,2728.2,20.73913159]
[1645270502761,4.29265123,2729.1,2728.2,20.73913159]
[1645270502960,0.25,2729.4,2728.2,20.73913159]
[1645270502961,4.29265123,2728.3,2728.2,20.73913159]
[1645270503358,0.1832,2729.1,2728.2,20.73913159]
[1645270503555,1.12120877,2729.2,2728.2,20.73913159]
[1645270503764,0.00256459,2728.4,2728.2,20.73913159]
[1645270504561,0.00256459,2728.4,2728.2,21.33913159]
[1645270504759,4.04294907,2728.7,2727.7,0.01745587]
[1645270504760,9.5,2728.6,2727.7,0.01745587]
[1645270504965,4.05557681,2727.8,2727.7,5.587e-05]
[1645270505362,4.05557681,2727.8,2727.7,16.09991687]
[1645270505561,0.4332,2728.1,2727.7,16.09991687]
[1645270505562,0.1832,2728.1,2727.7,16.14991487]
[1645270505761,0.00256463,2728.4,2727.7,26.01298487]
[1645270505961,4.04294907,2728.7,2727.7,5.587e-05]
[1645270506164,0.00256431,2728.4,2727.9,0.91636]
[1645270506370,0.00256431,2728.4,2728.0,0.437]
[1645270506573,0.00256431,2728.4,2728.0,2.56946]
[1645270506776,0.00256431,2728.4,2728.2,0.91619]
[1645270506971,0.00256431,2728.4,2728.3,0.437]
[1645270507177,3.5,2729.6,2728.3,0.737]
[1645270507178,3.6832,2729.6,2728.3,0.737]
[1645270507368,4.04294907,2729.2,2728.4,0.9162]
[1645270507866,4.04294907,2729.2,2728.5,1.51623]
[1645270508069,4.04294907,2729.2,2728.6,0.437]
[1645270508272,4.04294907,2729.2,2728.1,0.94256063]
[1645270508273,9.5,2729.0,2726.3,18.32332]
[1645270508480,9.5,2729.0,2724.4,5.415]
[1645270508481,4.04294907,2726.4,2724.4,5.415]
[1645270508775,0.01230627,2727.7,2724.3,1.0]
[1645270508776,9.05558457,2725.7,2724.3,1.0]
[1645270508976,0.19115324,2725.8,2724.3,1.0]
[1645270508977,4.04294907,2724.5,2724.3,1.0]
[1645270509172,4.04294907,2724.5,2724.4,31.681444]
[1645270509375,1.0,2724.4,2723.8,0.86778876]
[1645270509569,1.0,2724.4,2723.9,6.696e-05]
[1645270509570,1.1834,2724.4,2723.9,6.696e-05]
[1645270509773,1.0,2723.6,2723.5,0.0553489]
[1645270509971,5.04294907,2723.6,2723.5,0.05770479]
[1645270510212,4.04294907,2723.6,2723.5,0.0553489]
[1645270510411,4.04294907,2723.6,2723.5,4.89e-05]
[1645270510412,5.04294907,2723.6,2723.5,4.89e-05]
[1645270510616,5.04294907,2723.6,2723.4,1.8644319]
[1645270510617,6.15394548,2723.6,2723.4,1.8644319]
[1645270510821,14.94936298,2723.5,2723.4,3.19e-05]
[1645270511021,20.5,2723.4,2723.3,6.7e-05]
[1645270511218,4.04294907,2723.4,2723.3,6.7e-05]
[1645270511525,1.0,2723.4,2723.3,6.7e-05]
[1645270511919,1.0,2723.4,2723.3,28.144582]
[1645270512215,1.0,2723.4,2723.3,6.7e-05]
[1645270512418,0.25,2724.4,2723.3,6.7e-05]
[1645270512619,0.25,2724.4,2722.9,3.57206836]
[1645270512620,5.0,2724.1,2723.4,0.437]
[1645270512818,5.0,2725.0,2723.5,0.437]
[1645270513018,5.0,2725.0,2722.5,0.25]
[1645270513019,5.0,2725.0,2723.6,0.437]
[1645270513315,0.92550794,2724.6,2724.1,0.99374429]
[1645270513517,0.92550794,2724.6,2723.9,0.437]
[1645270513518,4.993,2724.2,2723.9,0.437]
[1645270513719,4.993,2724.0,2723.8,0.00233206]
[1645270513970,4.993,2724.8,2723.4,0.00233206]
[1645270514170,0.13819997,2725.1,2723.5,0.437]
[1645270514371,4.993,2725.0,2723.5,0.437]
[1645270514574,0.13819997,2725.1,2723.6,0.00233206]
[1645270514777,0.00221311,2724.2,2723.6,0.00233206]
[1645270514972,0.00221311,2724.2,2722.9,0.25]
[1645270514973,0.00221311,2724.2,2724.1,1.11582548]
[1645270515372,0.00221311,2724.2,2724.1,1.55282548]
[1645270515570,0.13819997,2725.4,2724.1,0.437]
[1645270515774,4.993,2724.2,2723.0,0.00233206]
[1645270515974,4.993,2724.0,2723.3,0.00233206]
[1645270516171,4.993,2724.0,2722.2,0.00233206]
[1645270516369,0.00221311,2724.3,2722.2,0.00233206]
[1645270516571,0.25221311,2724.3,2722.3,0.6643686]
[1645270516872,8.493,2725.0,2723.5,1.18416901]
[1645270517073,4.993,2725.0,2723.6,0.73933206]
[1645270517276,4.993,2725.0,2723.7,0.00233206]
[1645270517277,3.5,2724.9,2723.7,0.00233206]
[1645270517475,4.993,2723.9,2723.7,0.00233206]
[1645270517728,4.993,2723.9,2723.0,0.03044739]
[1645270517917,4.993,2723.1,2722.6,0.437]
[1645270518117,4.993,2722.8,2722.6,0.187]
[1645270518317,4.993,2722.8,2722.7,0.04149491]
[1645270518516,4.993,2722.8,2722.7,0.7979802]
[1645270518717,4.993,2723.1,2722.7,0.7979802]
[1645270519119,4.993,2723.1,2722.6,0.187]
[1645270519120,4.993,2722.8,2722.6,0.00233206]
[1645270519329,4.993,2722.8,2721.2,0.00391]
[1645270519330,0.01292644,2722.7,2721.2,0.00391]
[1645270519526,4.993,2721.7,2721.2,0.00391]
[1645270519723,4.993,2721.3,2721.1,0.00232244]
[1645270519925,4.993,2721.3,2720.5,0.03454983]
[1645270520121,4.993,2721.3,2720.7,0.65748713]
[1645270520122,4.993,2720.8,2720.7,0.65748713]
[1645270520324,4.993,2720.8,2719.3,0.02]
[1645270520325,9.5,2720.6,2719.3,0.02]